[Event "*** SCC Grand Prix: Titled Tuesday Blitz"]
[Site "Chess.com"]
[Date "2020.06.02"]
[Round "6"]
[White "Poghosyan_Suren"]
[Black "ItsCheckM8Mate"]
[Result "1-0"]
[WhiteElo "2442"]
[BlackElo "2264"]
[TimeControl "180+1"]
[EndTime "11:10:24 PDT"]
[Termination "Poghosyan_Suren won on time"]

1. d4 {[%clk 0:03:00.9]} 1... Nf6 {[%clk 0:02:59.6]} 2. c4 {[%clk 0:02:59.4]}
2... c5 {[%clk 0:02:59.1]} 3. Nc3 {[%clk 0:03:00.3]} 3... cxd4 {[%clk
0:02:58.4]} 4. Qxd4 {[%clk 0:03:01.2]} 4... Nc6 {[%clk 0:02:58.1]} 5. Qh4 {[%clk
0:03:01.6]} 5... Nb4 {[%clk 0:02:46.8]} 6. Rb1 {[%clk 0:02:51.6]} 6... Nc2+
{[%clk 0:02:36.2]} 7. Kd1 {[%clk 0:02:49.3]} 7... Nb4 {[%clk 0:02:36]} 8. e4
{[%clk 0:02:38.9]} 8... d6 {[%clk 0:02:33.3]} 9. Nf3 {[%clk 0:02:27.4]} 9... g6
{[%clk 0:02:33]} 10. Be2 {[%clk 0:02:18.2]} 10... Be6 {[%clk 0:02:28.1]} 11. Nd4
{[%clk 0:02:13.4]} 11... Bd7 {[%clk 0:02:24.5]} 12. Bh6 {[%clk 0:02:00.4]} 12...
Qb6 {[%clk 0:02:21.1]} 13. Bxf8 {[%clk 0:01:59.3]} 13... Qxd4+ {[%clk
0:02:20.5]} 14. Kc1 {[%clk 0:01:57.6]} 14... Rxf8 {[%clk 0:02:13.3]} 15. Rd1
{[%clk 0:01:55.9]} 15... Qc5 {[%clk 0:02:09]} 16. a3 {[%clk 0:01:50.6]} 16...
Nc6 {[%clk 0:02:02.7]} 17. b4 {[%clk 0:01:47.4]} 17... Qb6 {[%clk 0:02:01.3]}
18. g4 {[%clk 0:01:30.6]} 18... Nd4 {[%clk 0:01:48.2]} 19. h3 {[%clk 0:00:55.5]}
19... Nxe2+ {[%clk 0:01:47.1]} 20. Nxe2 {[%clk 0:00:56.4]} 20... Nxe4 {[%clk
0:01:45.1]} 21. g5 {[%clk 0:00:49.4]} 21... Nxf2 {[%clk 0:01:41.6]} 22. c5
{[%clk 0:00:49.6]} 22... dxc5 {[%clk 0:01:29.5]} 23. Qxf2 {[%clk 0:00:48.1]}
23... Rc8 {[%clk 0:01:26.4]} 24. Kd2 {[%clk 0:00:42.5]} 24... Ba4 {[%clk
0:01:24.1]} 25. Rdc1 {[%clk 0:00:40]} 25... Rd8+ {[%clk 0:01:18.4]} 26. Ke1
{[%clk 0:00:40.2]} 26... f6 {[%clk 0:01:07]} 27. Rxc5 {[%clk 0:00:32]} 27...
fxg5 {[%clk 0:01:03.4]} 28. Qe3 {[%clk 0:00:32.1]} 28... Qd6 {[%clk 0:00:58.4]}
29. Nc3 {[%clk 0:00:20.1]} 29... Rf6 {[%clk 0:00:40.7]} 30. Ne4 {[%clk 0:00:17]}
30... Re6 {[%clk 0:00:28.2]} 31. Nxd6+ {[%clk 0:00:16.9]} 31... Rdxd6 {[%clk
0:00:28.1]} 32. Rc3 {[%clk 0:00:16.5]} 32... Rxe3+ {[%clk 0:00:18]} 33. Rxe3
{[%clk 0:00:17.4]} 33... h5 {[%clk 0:00:16.3]} 34. Rc1 {[%clk 0:00:17.5]} 34...
Bc6 {[%clk 0:00:15.2]} 35. Rc5 {[%clk 0:00:17.1]} 35... g4 {[%clk 0:00:13.4]}
36. hxg4 {[%clk 0:00:16.5]} 36... h4 {[%clk 0:00:12.1]} 37. Rce5 {[%clk
0:00:16.6]} 37... Rd7 {[%clk 0:00:07.5]} 38. g5 {[%clk 0:00:15.6]} 38... Kf7
{[%clk 0:00:05.2]} 39. b5 {[%clk 0:00:12.6]} 39... Bg2 {[%clk 0:00:03.7]} 40.
Kf2 {[%clk 0:00:13.5]} 40... h3 {[%clk 0:00:03.6]} 41. Kg3 {[%clk 0:00:13.6]}
41... a6 {[%clk 0:00:02.5]} 42. b6 {[%clk 0:00:13.3]} 42... Ke8 {[%clk
0:00:02.2]} 43. Re2 {[%clk 0:00:13.1]} 43... Kf7 {[%clk 0:00:02]} 44. Rf2+
{[%clk 0:00:13.1]} 44... Kg7 {[%clk 0:00:02.4]} 45. Rc2 {[%clk 0:00:14]} 45...
Kf7 {[%clk 0:00:02]} 46. Rc7 {[%clk 0:00:14]} 46... Ke8 {[%clk 0:00:02.4]} 47.
Rc8+ {[%clk 0:00:12]} 47... Kf7 {[%clk 0:00:02.5]} 48. Rc7 {[%clk 0:00:12.9]}
48... Ke8 {[%clk 0:00:02.6]} 49. a4 {[%clk 0:00:12.3]} 49... Kd8 {[%clk
0:00:02.8]} 50. Rec5 {[%clk 0:00:11.2]} 50... Rd6 {[%clk 0:00:02.1]} 51. Rc8+
{[%clk 0:00:10.5]} 51... Kd7 {[%clk 0:00:02.4]} 52. R8c7+ {[%clk 0:00:11.4]}
52... Ke6 {[%clk 0:00:02.7]} 53. a5 {[%clk 0:00:10.5]} 53... Rd3+ {[%clk
0:00:02.2]} 54. Kh2 {[%clk 0:00:10.3]} 54... Rd2 {[%clk 0:00:02.4]} 55. Rc2
{[%clk 0:00:09.4]} 55... Rxc2 {[%clk 0:00:01.8]} 56. Rxc2 {[%clk 0:00:10.3]}
56... Kf5 {[%clk 0:00:01.8]} 57. Re2 {[%clk 0:00:10.1]} 57... e5 {[%clk
0:00:01.7]} 58. Kg3 {[%clk 0:00:09.2]} 58... e4 {[%clk 0:00:01.1]} 59. Re3
{[%clk 0:00:08.2]} 1-0

[Event "*** SCC Grand Prix: Titled Tuesday Blitz"]
[Site "Chess.com"]
[Date "2020.06.02"]
[Round "6"]
[White "Djager97"]
[Black "IngOscarArdila"]
[Result "1-0"]
[WhiteElo "2380"]
[BlackElo "2099"]
[TimeControl "180+1"]
[EndTime "11:10:24 PDT"]
[Termination "Djager97 won by resignation"]

1. e4 {[%clk 0:03:00.9]} 1... e5 {[%clk 0:02:53.3]} 2. Nf3 {[%clk 0:03:01.2]}
2... Nf6 {[%clk 0:02:49.8]} 3. Nc3 {[%clk 0:03:00.6]} 3... Nc6 {[%clk
0:01:58.9]} 4. d4 {[%clk 0:02:58.7]} 4... exd4 {[%clk 0:01:57.9]} 5. Nxd4 {[%clk
0:02:59.6]} 5... Bb4 {[%clk 0:01:57.3]} 6. Nxc6 {[%clk 0:02:59]} 6... bxc6
{[%clk 0:01:58.2]} 7. Bd3 {[%clk 0:02:59.6]} 7... d5 {[%clk 0:01:55.9]} 8. exd5
{[%clk 0:03:00.5]} 8... cxd5 {[%clk 0:01:56.5]} 9. O-O {[%clk 0:03:00.3]} 9...
O-O {[%clk 0:01:56.2]} 10. h3 {[%clk 0:03:00.9]} 10... c6 {[%clk 0:01:56.1]} 11.
Qf3 {[%clk 0:03:01]} 11... Bd6 {[%clk 0:01:50.9]} 12. Re1 {[%clk 0:02:56.1]}
12... Rb8 {[%clk 0:01:49.7]} 13. b3 {[%clk 0:02:54.8]} 13... Re8 {[%clk
0:01:48.5]} 14. Rxe8+ {[%clk 0:02:53.3]} 14... Qxe8 {[%clk 0:01:47.3]} 15. Bf4
{[%clk 0:02:53.4]} 15... Qe7 {[%clk 0:01:39.7]} 16. Na4 {[%clk 0:02:43.9]} 16...
Rb4 {[%clk 0:01:28.6]} 17. Bxd6 {[%clk 0:02:39.8]} 17... Qxd6 {[%clk 0:01:28.1]}
18. Qe3 {[%clk 0:02:29.7]} 18... d4 {[%clk 0:01:18.7]} 19. Qg5 {[%clk
0:02:18.4]} 19... Be6 {[%clk 0:01:06.7]} 20. Re1 {[%clk 0:02:12.2]} 20... Rb8
{[%clk 0:01:04.4]} 21. Qa5 {[%clk 0:02:04.1]} 21... Ra8 {[%clk 0:00:33.9]} 22.
Nc5 {[%clk 0:01:58.1]} 22... h6 {[%clk 0:00:30.4]} 23. b4 {[%clk 0:01:43.8]}
23... Nd5 {[%clk 0:00:29.6]} 24. a3 {[%clk 0:01:42.1]} 24... Nf4 {[%clk
0:00:18.6]} 25. Nxe6 {[%clk 0:01:35.9]} 25... fxe6 {[%clk 0:00:18.3]} 26. Re4
{[%clk 0:01:10.6]} 26... Nxd3 {[%clk 0:00:16.1]} 27. cxd3 {[%clk 0:01:10.5]}
27... Qd5 {[%clk 0:00:11.8]} 28. Qxd5 {[%clk 0:01:07.5]} 28... exd5 {[%clk
0:00:11.8]} 29. Rxd4 {[%clk 0:01:05]} 29... Kf7 {[%clk 0:00:11.7]} 30. Rf4+
{[%clk 0:01:01.1]} 30... Ke6 {[%clk 0:00:11.3]} 31. Rg4 {[%clk 0:00:55.7]} 31...
g5 {[%clk 0:00:11.2]} 32. h4 {[%clk 0:00:56]} 32... gxh4 {[%clk 0:00:11.4]} 33.
Rxh4 {[%clk 0:00:56.3]} 33... a5 {[%clk 0:00:11.9]} 34. Rxh6+ {[%clk 0:00:55.1]}
34... Kd7 {[%clk 0:00:12.2]} 35. g4 {[%clk 0:00:27.9]} 35... axb4 {[%clk
0:00:12.3]} 36. axb4 {[%clk 0:00:28.8]} 36... Ra3 {[%clk 0:00:12.4]} 37. g5
{[%clk 0:00:27.7]} 37... Rxd3 {[%clk 0:00:12.2]} 38. g6 {[%clk 0:00:19.8]} 38...
Rd4 {[%clk 0:00:12.4]} 39. f3 {[%clk 0:00:20.2]} 39... Ke7 {[%clk 0:00:12.4]}
40. g7 {[%clk 0:00:15.4]} 40... Kf7 {[%clk 0:00:12.7]} 41. Rg6 {[%clk
0:00:15.1]} 41... Kg8 {[%clk 0:00:12]} 42. Rxc6 {[%clk 0:00:14.3]} 42... Kxg7
{[%clk 0:00:11.8]} 43. b5 {[%clk 0:00:14.7]} 43... Kf7 {[%clk 0:00:10.8]} 44. b6
{[%clk 0:00:14.6]} 44... Rb4 {[%clk 0:00:10.8]} 45. Kf2 {[%clk 0:00:14.7]} 45...
d4 {[%clk 0:00:10.3]} 46. Rc7+ {[%clk 0:00:12.8]} 46... Ke6 {[%clk 0:00:10]} 47.
b7 {[%clk 0:00:13.3]} 47... Kd6 {[%clk 0:00:10.4]} 48. Rg7 {[%clk 0:00:13.2]}
48... Ke5 {[%clk 0:00:09.8]} 49. Ke2 {[%clk 0:00:12.2]} 49... Kf4 {[%clk
0:00:09.9]} 50. Rf7+ {[%clk 0:00:12.1]} 50... Ke5 {[%clk 0:00:09.7]} 51. Kd3
{[%clk 0:00:12.5]} 51... Rb3+ {[%clk 0:00:09.7]} 52. Kc4 {[%clk 0:00:12.3]}
52... Rc3+ {[%clk 0:00:09.9]} 53. Kb5 {[%clk 0:00:12.4]} 53... Rc1 {[%clk
0:00:09.7]} 54. Ka6 {[%clk 0:00:10.3]} 54... Ra1+ {[%clk 0:00:09.3]} 55. Kb6
{[%clk 0:00:10.2]} 55... Rb1+ {[%clk 0:00:09.6]} 56. Kc7 {[%clk 0:00:10.3]}
56... Rc1+ {[%clk 0:00:09.9]} 57. Kd8 {[%clk 0:00:10.3]} 57... Rb1 {[%clk
0:00:10.1]} 58. Kc8 {[%clk 0:00:10.4]} 58... Rc1+ {[%clk 0:00:10]} 59. Rc7
{[%clk 0:00:10.9]} 59... Rb1 {[%clk 0:00:09.5]} 60. b8=Q {[%clk 0:00:11.2]}
60... Rxb8+ {[%clk 0:00:09.5]} 61. Kxb8 {[%clk 0:00:12.1]} 61... Kf4 {[%clk
0:00:10.1]} 62. Rd7 {[%clk 0:00:12.5]} 62... Ke3 {[%clk 0:00:10.3]} 63. f4
{[%clk 0:00:09.8]} 63... d3 {[%clk 0:00:10.1]} 64. f5 {[%clk 0:00:09.6]} 64...
d2 {[%clk 0:00:10.9]} 65. f6 {[%clk 0:00:09.9]} 65... Ke2 {[%clk 0:00:11.8]} 66.
f7 {[%clk 0:00:09.6]} 66... d1=Q {[%clk 0:00:12.7]} 67. Rxd1 {[%clk 0:00:09.5]}
67... Kxd1 {[%clk 0:00:13.6]} 68. f8=Q {[%clk 0:00:10.1]} 1-0

[Event "*** SCC Grand Prix: Titled Tuesday Blitz"]
[Site "Chess.com"]
[Date "2020.06.02"]
[Round "6"]
[White "ChessicallyInclined"]
[Black "Pavel_Mir"]
[Result "0-1"]
[WhiteElo "2521"]
[BlackElo "2300"]
[TimeControl "180+1"]
[EndTime "11:10:27 PDT"]
[Termination "Pavel_Mir won by resignation"]

1. d4 {[%clk 0:03:00.9]} 1... Nf6 {[%clk 0:02:59.7]} 2. c4 {[%clk 0:03:01.1]}
2... c6 {[%clk 0:03:00.3]} 3. Nf3 {[%clk 0:02:59.6]} 3... d5 {[%clk 0:03:00.6]}
4. e3 {[%clk 0:03:00]} 4... g6 {[%clk 0:03:00.1]} 5. Nc3 {[%clk 0:02:59.5]} 5...
Bg7 {[%clk 0:03:00.6]} 6. Bd2 {[%clk 0:02:59.1]} 6... O-O {[%clk 0:03:00.5]} 7.
Bd3 {[%clk 0:02:59]} 7... Be6 {[%clk 0:02:55.3]} 8. c5 {[%clk 0:02:57.4]} 8...
Bg4 {[%clk 0:02:52.6]} 9. h3 {[%clk 0:02:57.4]} 9... Bxf3 {[%clk 0:02:52.2]} 10.
Qxf3 {[%clk 0:02:58.3]} 10... e5 {[%clk 0:02:51.5]} 11. Bc2 {[%clk 0:02:45.1]}
11... exd4 {[%clk 0:02:48.4]} 12. exd4 {[%clk 0:02:44.9]} 12... Re8+ {[%clk
0:02:48.8]} 13. Kf1 {[%clk 0:02:43.2]} 13... Na6 {[%clk 0:02:45.4]} 14. a3
{[%clk 0:02:40.3]} 14... Nc7 {[%clk 0:02:44.9]} 15. h4 {[%clk 0:02:33.6]} 15...
h5 {[%clk 0:02:42.4]} 16. g3 {[%clk 0:02:26.6]} 16... Ne6 {[%clk 0:02:41.2]} 17.
Be3 {[%clk 0:02:25.2]} 17... Ng4 {[%clk 0:02:41.1]} 18. Rd1 {[%clk 0:02:16.2]}
18... Qe7 {[%clk 0:02:04.7]} 19. Ne2 {[%clk 0:02:11.1]} 19... Nc7 {[%clk
0:01:54.4]} 20. Bd2 {[%clk 0:02:00.7]} 20... Nb5 {[%clk 0:01:50.5]} 21. Bg5
{[%clk 0:01:55.7]} 21... Qxe2+ {[%clk 0:01:40.7]} 22. Qxe2 {[%clk 0:01:53.6]}
22... Rxe2 {[%clk 0:01:41.2]} 23. Kxe2 {[%clk 0:01:53.7]} 23... Nxd4+ {[%clk
0:01:41]} 24. Kd2 {[%clk 0:01:46]} 24... Nxf2 {[%clk 0:01:32.8]} 25. Rhf1 {[%clk
0:01:43.6]} 25... Nxd1 {[%clk 0:01:27.8]} 26. Bxd1 {[%clk 0:01:44.5]} 26... Re8
{[%clk 0:01:20.7]} 27. b4 {[%clk 0:01:43]} 27... Nf5 {[%clk 0:01:15.5]} 28. Bf4
{[%clk 0:01:39.9]} 28... Be5 {[%clk 0:01:08.1]} 29. g4 {[%clk 0:01:28]} 29...
hxg4 {[%clk 0:00:54.1]} 30. Bxg4 {[%clk 0:01:28.9]} 30... Bxf4+ {[%clk
0:00:54.4]} 31. Rxf4 {[%clk 0:01:28.4]} 31... Ne3 {[%clk 0:00:54.5]} 32. Be2
{[%clk 0:01:22.3]} 32... f5 {[%clk 0:00:50.9]} 33. Rf3 {[%clk 0:01:01.3]} 33...
Ng4 {[%clk 0:00:43.4]} 34. Rg3 {[%clk 0:00:59.6]} 34... Re4 {[%clk 0:00:36]} 35.
Bf3 {[%clk 0:00:59.3]} 35... Rd4+ {[%clk 0:00:31.9]} 36. Kc3 {[%clk 0:00:58.6]}
36... Rc4+ {[%clk 0:00:31.2]} 37. Kb3 {[%clk 0:00:57.7]} 37... Kf7 {[%clk
0:00:29.5]} 38. Be2 {[%clk 0:00:57.7]} 38... Re4 {[%clk 0:00:28.6]} 39. Bd3
{[%clk 0:00:47.8]} 39... Re3 {[%clk 0:00:27.5]} 40. Rxe3 {[%clk 0:00:46.7]}
40... Nxe3 {[%clk 0:00:27.6]} 41. Kc3 {[%clk 0:00:46.6]} 41... Kf6 {[%clk
0:00:26.6]} 42. b5 {[%clk 0:00:41.8]} 42... Ke5 {[%clk 0:00:20.2]} 43. b6 {[%clk
0:00:38]} 43... axb6 {[%clk 0:00:19.5]} 44. cxb6 {[%clk 0:00:38]} 44... d4+
{[%clk 0:00:19.5]} 45. Kd2 {[%clk 0:00:35.1]} 45... Nd5 {[%clk 0:00:19.5]} 46.
Ba6 {[%clk 0:00:33.4]} 46... Nxb6 {[%clk 0:00:18.7]} 47. Bxb7 {[%clk 0:00:33.6]}
47... c5 {[%clk 0:00:18.5]} 48. Bc6 {[%clk 0:00:30.7]} 48... Kd6 {[%clk
0:00:17.8]} 49. Be8 {[%clk 0:00:30.5]} 49... c4 {[%clk 0:00:17.8]} 50. Bxg6
{[%clk 0:00:30.4]} 50... f4 {[%clk 0:00:17.2]} 51. h5 {[%clk 0:00:27.4]} 51...
Ke7 {[%clk 0:00:17.3]} 52. h6 {[%clk 0:00:23.6]} 52... Kf6 {[%clk 0:00:17.1]}
53. Be4 {[%clk 0:00:21.2]} 53... Na4 {[%clk 0:00:15]} 54. Bc6 {[%clk 0:00:19.8]}
54... Nc5 {[%clk 0:00:14.9]} 55. a4 {[%clk 0:00:18.1]} 55... c3+ {[%clk
0:00:14.8]} 56. Kc2 {[%clk 0:00:17.2]} 56... f3 {[%clk 0:00:14.9]} 57. Bxf3
{[%clk 0:00:15.8]} 57... Nxa4 {[%clk 0:00:15.1]} 58. Bd1 {[%clk 0:00:07.6]}
58... Nc5 {[%clk 0:00:14.6]} 59. Bh5 {[%clk 0:00:05.3]} 59... Na4 {[%clk
0:00:11.7]} 60. Kd3 {[%clk 0:00:04.9]} 60... Nc5+ {[%clk 0:00:11.2]} 61. Kc2
{[%clk 0:00:04.8]} 61... Ne6 {[%clk 0:00:11]} 62. Bg4 {[%clk 0:00:03]} 62... Nf4
{[%clk 0:00:10.5]} 63. h7 {[%clk 0:00:02]} 63... Kg7 {[%clk 0:00:10.5]} 64. Bf5
{[%clk 0:00:02.9]} 64... Kh8 {[%clk 0:00:09.3]} 65. Be4 {[%clk 0:00:03.3]} 65...
Ne6 {[%clk 0:00:08.6]} 66. Kb3 {[%clk 0:00:02.7]} 66... Nc5+ {[%clk 0:00:08.6]}
67. Kc4 {[%clk 0:00:03.2]} 67... Nxe4 {[%clk 0:00:08.8]} 68. Kxd4 {[%clk
0:00:03.5]} 68... c2 {[%clk 0:00:09.2]} 69. Kxe4 {[%clk 0:00:04]} 69... c1=Q
{[%clk 0:00:09.7]} 0-1

[Event "*** SCC Grand Prix: Titled Tuesday Blitz"]
[Site "Chess.com"]
[Date "2020.06.02"]
[Round "6"]
[White "Crazy_girl99"]
[Black "EnergeticHay"]
[Result "1-0"]
[WhiteElo "2419"]
[BlackElo "2201"]
[TimeControl "180+1"]
[EndTime "11:10:29 PDT"]
[Termination "Crazy_girl99 won by resignation"]

1. Nf3 {[%clk 0:03:00.9]} 1... Nf6 {[%clk 0:02:59.8]} 2. g3 {[%clk 0:02:59]}
2... g6 {[%clk 0:03:00.4]} 3. Bg2 {[%clk 0:02:55.3]} 3... Bg7 {[%clk 0:03:01.3]}
4. O-O {[%clk 0:02:51.8]} 4... O-O {[%clk 0:03:00.9]} 5. d4 {[%clk 0:02:50]}
5... d6 {[%clk 0:03:01.1]} 6. c4 {[%clk 0:02:45.9]} 6... c5 {[%clk 0:03:01.3]}
7. dxc5 {[%clk 0:02:39]} 7... dxc5 {[%clk 0:03:02.2]} 8. Qxd8 {[%clk 0:02:39.1]}
8... Rxd8 {[%clk 0:03:02.3]} 9. Be3 {[%clk 0:02:39.7]} 9... Ng4 {[%clk
0:02:49.2]} 10. Bc1 {[%clk 0:02:34]} 10... Be6 {[%clk 0:02:43.4]} 11. Na3 {[%clk
0:02:30.6]} 11... Nc6 {[%clk 0:02:41.9]} 12. h3 {[%clk 0:02:18.3]} 12... Nge5
{[%clk 0:02:40.4]} 13. Nd2 {[%clk 0:02:18.2]} 13... Rac8 {[%clk 0:02:29.7]} 14.
Rb1 {[%clk 0:02:17.6]} 14... b6 {[%clk 0:02:25.8]} 15. b3 {[%clk 0:02:17.9]}
15... Nb4 {[%clk 0:02:17.9]} 16. Nb5 {[%clk 0:02:10.3]} 16... a6 {[%clk
0:02:09.6]} 17. Nc3 {[%clk 0:02:09.5]} 17... Ned3 {[%clk 0:01:54]} 18. Nce4
{[%clk 0:01:41.8]} 18... Nxc1 {[%clk 0:01:48.5]} 19. Rbxc1 {[%clk 0:01:42.2]}
19... Nxa2 {[%clk 0:01:27.5]} 20. Rcd1 {[%clk 0:01:36.5]} 20... Nb4 {[%clk
0:01:14.1]} 21. Ng5 {[%clk 0:01:26.9]} 21... Bf5 {[%clk 0:01:12.7]} 22. e4
{[%clk 0:01:25.9]} 22... Bd7 {[%clk 0:01:12.7]} 23. g4 {[%clk 0:01:20.2]} 23...
Bc6 {[%clk 0:01:12.9]} 24. Nb1 {[%clk 0:01:06.5]} 24... h6 {[%clk 0:00:56.9]}
25. Nf3 {[%clk 0:01:01.6]} 25... Bxe4 {[%clk 0:00:57]} 26. Rde1 {[%clk
0:00:54.2]} 26... Bd3 {[%clk 0:00:46.2]} 27. Rxe7 {[%clk 0:00:40.7]} 27... Bxf1
{[%clk 0:00:45.8]} 28. Bxf1 {[%clk 0:00:41.6]} 28... Rd1 {[%clk 0:00:44.1]} 29.
Nbd2 {[%clk 0:00:41.7]} 29... Rd8 {[%clk 0:00:41.4]} 30. Ne4 {[%clk 0:00:40.8]}
30... Ra1 {[%clk 0:00:34.5]} 31. Kg2 {[%clk 0:00:35.8]} 31... Kf8 {[%clk
0:00:28.6]} 32. Rb7 {[%clk 0:00:34.5]} 32... f5 {[%clk 0:00:21.6]} 33. gxf5
{[%clk 0:00:33.7]} 33... gxf5 {[%clk 0:00:22.5]} 34. Ng3 {[%clk 0:00:33.5]}
34... Rdd1 {[%clk 0:00:19.8]} 35. Be2 {[%clk 0:00:32.2]} 35... Rd6 {[%clk
0:00:20.2]} 36. Nxf5 {[%clk 0:00:27.1]} 36... Rg6+ {[%clk 0:00:20.5]} 37. Kh2
{[%clk 0:00:26.9]} 37... Bc3 {[%clk 0:00:19.2]} 38. N3h4 {[%clk 0:00:20.6]}
38... Be5+ {[%clk 0:00:19]} 39. Ng3 {[%clk 0:00:17.4]} 39... Bxg3+ {[%clk
0:00:18.4]} 40. fxg3 {[%clk 0:00:18.3]} 40... Re6 {[%clk 0:00:18.9]} 41. Bf3
{[%clk 0:00:14.4]} 41... Ree1 {[%clk 0:00:18.8]} 42. g4 {[%clk 0:00:14.2]} 42...
Ra2+ {[%clk 0:00:18.9]} 43. Kg3 {[%clk 0:00:14.3]} 43... Re6 {[%clk 0:00:17.8]}
44. Kf4 {[%clk 0:00:14.3]} 44... Rf6+ {[%clk 0:00:17.8]} 45. Ke5 {[%clk
0:00:14.1]} 45... Rf7 {[%clk 0:00:15.6]} 46. Rb8+ {[%clk 0:00:14]} 46... Kg7
{[%clk 0:00:15.4]} 47. Nf5+ {[%clk 0:00:14.3]} 47... Kh7 {[%clk 0:00:15.3]} 48.
Be4 {[%clk 0:00:14.5]} 48... Re2 {[%clk 0:00:14.2]} 49. Nd6+ {[%clk 0:00:13.8]}
49... Kg7 {[%clk 0:00:14.2]} 50. Nxf7 {[%clk 0:00:13.5]} 50... Kxf7 {[%clk
0:00:15.1]} 51. Rxb6 {[%clk 0:00:13.6]} 51... Nd3+ {[%clk 0:00:14]} 52. Kd5
{[%clk 0:00:12.3]} 52... Nf4+ {[%clk 0:00:13.8]} 53. Ke5 {[%clk 0:00:11.8]}
53... Nd3+ {[%clk 0:00:14.3]} 54. Kd5 {[%clk 0:00:07.2]} 54... Nf4+ {[%clk
0:00:12.7]} 55. Kxc5 {[%clk 0:00:07.4]} 55... Rxe4 {[%clk 0:00:12.2]} 56. Rxh6
{[%clk 0:00:07.7]} 56... Nd3+ {[%clk 0:00:11.2]} 57. Kd5 {[%clk 0:00:06.4]}
57... Re3 {[%clk 0:00:10.8]} 58. Kd4 {[%clk 0:00:06.4]} 58... Rg3 {[%clk
0:00:10.4]} 59. Rxa6 {[%clk 0:00:06.5]} 59... Rxh3 {[%clk 0:00:09.6]} 60. c5
{[%clk 0:00:06.9]} 60... Nf4 {[%clk 0:00:09.2]} 61. c6 {[%clk 0:00:07.2]} 61...
Ne6+ {[%clk 0:00:09.1]} 62. Ke5 {[%clk 0:00:07.2]} 62... Rxb3 {[%clk 0:00:09.5]}
63. Ra7+ {[%clk 0:00:06.6]} 63... Ke8 {[%clk 0:00:08]} 64. Kxe6 {[%clk
0:00:07.1]} 64... Re3+ {[%clk 0:00:08.5]} 65. Kd6 {[%clk 0:00:07.6]} 65... Rd3+
{[%clk 0:00:08.8]} 66. Kc7 {[%clk 0:00:08.2]} 66... Re3 {[%clk 0:00:07]} 67. g5
{[%clk 0:00:06.4]} 67... Rg3 {[%clk 0:00:05.9]} 68. Ra5 {[%clk 0:00:05.8]} 68...
Rd3 {[%clk 0:00:05.5]} 69. Re5+ {[%clk 0:00:05.7]} 69... Kf8 {[%clk 0:00:05.3]}
70. Kc8 {[%clk 0:00:06.4]} 70... Rc3 {[%clk 0:00:05.3]} 71. c7 {[%clk
0:00:06.8]} 71... Rc6 {[%clk 0:00:05]} 72. Rd5 {[%clk 0:00:06.7]} 72... Rc1
{[%clk 0:00:04.6]} 73. Kd7 {[%clk 0:00:06.7]} 73... Rxc7+ {[%clk 0:00:03.4]} 1-0

[Event "*** SCC Grand Prix: Titled Tuesday Blitz"]
[Site "Chess.com"]
[Date "2020.06.02"]
[Round "6"]
[White "TST2014"]
[Black "Igor_Lysyj"]
[Result "0-1"]
[WhiteElo "2507"]
[BlackElo "2760"]
[TimeControl "180+1"]
[EndTime "11:10:30 PDT"]
[Termination "Igor_Lysyj won on time"]

1. d4 {[%clk 0:02:41.3]} 1... d5 {[%clk 0:02:59.1]} 2. c4 {[%clk 0:02:41.3]}
2... e6 {[%clk 0:02:59]} 3. Nf3 {[%clk 0:02:41.4]} 3... Nf6 {[%clk 0:02:58.7]}
4. Nc3 {[%clk 0:02:41.4]} 4... dxc4 {[%clk 0:02:58.4]} 5. e3 {[%clk 0:02:41.2]}
5... a6 {[%clk 0:02:58.2]} 6. a4 {[%clk 0:02:41.1]} 6... c5 {[%clk 0:02:57.8]}
7. Bxc4 {[%clk 0:02:41]} 7... Nc6 {[%clk 0:02:57.9]} 8. O-O {[%clk 0:02:40.3]}
8... Be7 {[%clk 0:02:58.2]} 9. Qe2 {[%clk 0:02:40.3]} 9... O-O {[%clk
0:02:56.4]} 10. Rd1 {[%clk 0:02:40.2]} 10... Qc7 {[%clk 0:02:54.2]} 11. b3
{[%clk 0:02:39.3]} 11... Bd7 {[%clk 0:02:40.8]} 12. Bb2 {[%clk 0:02:34.2]} 12...
cxd4 {[%clk 0:02:39.3]} 13. exd4 {[%clk 0:02:32.8]} 13... Na5 {[%clk 0:02:37.8]}
14. Rac1 {[%clk 0:02:18.2]} 14... Nxc4 {[%clk 0:02:35.7]} 15. bxc4 {[%clk
0:02:17.9]} 15... Rfd8 {[%clk 0:02:23.1]} 16. h3 {[%clk 0:02:10]} 16... Bb4
{[%clk 0:02:20.2]} 17. Ra1 {[%clk 0:01:52.3]} 17... Rac8 {[%clk 0:02:16.8]} 18.
c5 {[%clk 0:01:52.3]} 18... Bxc3 {[%clk 0:01:57.3]} 19. Bxc3 {[%clk 0:01:51.2]}
19... Nd5 {[%clk 0:01:57.2]} 20. Qd2 {[%clk 0:01:47.8]} 20... Re8 {[%clk
0:01:45.8]} 21. Ba5 {[%clk 0:01:47.1]} 21... Qb8 {[%clk 0:01:45.9]} 22. Ne5
{[%clk 0:01:41.2]} 22... Bc6 {[%clk 0:01:45.6]} 23. Ra3 {[%clk 0:01:37.4]} 23...
f6 {[%clk 0:01:44.9]} 24. Nc4 {[%clk 0:01:37.1]} 24... Qf4 {[%clk 0:01:37.1]}
25. Nd6 {[%clk 0:01:31.4]} 25... Qxd2 {[%clk 0:01:33.8]} 26. Rxd2 {[%clk
0:01:30.7]} 26... g5 {[%clk 0:01:29.7]} 27. f3 {[%clk 0:01:29.5]} 27... Kg7
{[%clk 0:01:28.3]} 28. Kf2 {[%clk 0:01:29.1]} 28... Nf4 {[%clk 0:01:24.5]} 29.
Rb2 {[%clk 0:01:21.2]} 29... Rf8 {[%clk 0:01:14.7]} 30. Nxc8 {[%clk 0:01:20.1]}
30... Rxc8 {[%clk 0:01:14.6]} 31. Bd2 {[%clk 0:01:06.5]} 31... Nd5 {[%clk
0:01:12.7]} 32. a5 {[%clk 0:00:59.9]} 32... Rc7 {[%clk 0:01:11.9]} 33. Rab3
{[%clk 0:00:58.2]} 33... h5 {[%clk 0:01:08.9]} 34. Rb1 {[%clk 0:00:54.2]} 34...
Rd7 {[%clk 0:01:08.3]} 35. Be3 {[%clk 0:00:51.2]} 35... h4 {[%clk 0:01:07.3]}
36. Re1 {[%clk 0:00:44.8]} 36... Ba4 {[%clk 0:01:03.1]} 37. Ra3 {[%clk
0:00:41.2]} 37... Bb5 {[%clk 0:01:02.6]} 38. Bc1 {[%clk 0:00:39.3]} 38... Kf7
{[%clk 0:00:58.3]} 39. g3 {[%clk 0:00:37.7]} 39... hxg3+ {[%clk 0:00:55.7]} 40.
Kxg3 {[%clk 0:00:38.1]} 40... Nb4 {[%clk 0:00:55.9]} 41. Re4 {[%clk 0:00:21.2]}
41... Nc2 {[%clk 0:00:43.6]} 42. Ra2 {[%clk 0:00:09.3]} 42... Nxd4 {[%clk
0:00:41.7]} 43. Rd2 {[%clk 0:00:08.6]} 43... e5 {[%clk 0:00:36.8]} 44. Kf2
{[%clk 0:00:08.5]} 44... Rc7 {[%clk 0:00:34.2]} 45. Ba3 {[%clk 0:00:07.8]} 45...
Ne6 {[%clk 0:00:23.5]} 46. Rd6 {[%clk 0:00:05.5]} 46... Bc6 {[%clk 0:00:22.3]}
47. Rb4 {[%clk 0:00:04.8]} 47... Nf4 {[%clk 0:00:21.4]} 48. Kg3 {[%clk 0:00:04]}
48... Kg6 {[%clk 0:00:20.7]} 49. Rb6 {[%clk 0:00:03.8]} 49... Rh7 {[%clk
0:00:18.2]} 50. h4 {[%clk 0:00:02]} 50... Rxh4 {[%clk 0:00:17.6]} 51. Rdxc6
{[%clk 0:00:01.1]} 51... bxc6 {[%clk 0:00:17.3]} 52. Rxc6 {[%clk 0:00:01.6]}
52... Rh3+ {[%clk 0:00:17.3]} 53. Kf2 {[%clk 0:00:02.1]} 53... Rh2+ {[%clk
0:00:17.2]} 54. Kf1 {[%clk 0:00:02.5]} 54... Ra2 {[%clk 0:00:16.9]} 55. Bb4
{[%clk 0:00:02.6]} 55... Ra1+ {[%clk 0:00:13.4]} 56. Kf2 {[%clk 0:00:01.7]}
56... Nd3+ {[%clk 0:00:12.9]} 57. Ke3 {[%clk 0:00:02]} 57... Nxb4 {[%clk
0:00:12.9]} 58. Rb6 {[%clk 0:00:01.7]} 58... Nd5+ {[%clk 0:00:12.6]} 59. Ke4
{[%clk 0:00:02.3]} 59... Nxb6 {[%clk 0:00:11.8]} 60. axb6 {[%clk 0:00:02.7]}
60... Rb1 {[%clk 0:00:11.4]} 61. Kd5 {[%clk 0:00:02.2]} 61... Rd1+ {[%clk
0:00:10]} 62. Ke6 {[%clk 0:00:01.6]} 62... Rb1 {[%clk 0:00:09.1]} 0-1